Cogmind - Beta 17 @@@ ROGUE MODE // 2026.07.06 @ 21:45:22 Player: KuFish Result: Destroyed by H-66 Slayer with Heavy Assault Rifle Performance ------------- Evolutions (4) 2000 Regions Visited (4) 800 Robots Destroyed (0) 0 Value Destroyed (0) 0 Prototype IDs (0) 0 Alien Tech Used (0) 0 Bonus (270) 270 TOTAL SCORE: 3070 Bonus ------- Pacifist 270 Cogmind --------- Core Integrity 0/850 Matter 23/300 Energy 32/100 System Corruption 12% Temperature Warm (175) Movement Core (50) Location -6/Factory Parts ------- > --- POWER (4) -------- (None) > --- PROPULSION (4) --- (None) > --- UTILITY (4) ------ (None) > --- WEAPON (3) ------- (None) > --- INVENTORY (5) ---- Cooling System Peak State ------------ > --- POWER ------------ Fusion Compressor > --- PROPULSION ------- Light Treads Light Treads > --- UTILITY ---------- Small Storage Unit > --- WEAPON ----------- EM Pulse Gun Light Assault Rifle > --- INVENTORY -------- Ion Engine Ion Engine Cooling System Medium Storage Unit Improved Salvage Targeting Computer Improved Medium Armor Plating Heavy Machine Gun CPS Tube [Rating: 12] Favorites ----------- Power Fusion Compressor Engine Ion Engine Power Core Fusion Compressor Propulsion Light Treads Treads Light Treads Utility Small Storage Unit Storage Small Storage Unit Weapon Light Assault Rifle Energy Gun EM Pulse Gun Ballistic Gun Light Assault Rifle Ballistic Cannon Advanced Assault Cannon Launcher Heavy Missile Launcher Build | -11 -10 -10 -9 -6 ------- Run | Yrd Mat Sub Scr Fac Slots Evolved 8 | . . . . 8 Power 3 | . . . . 3 Propulsion 2 | . . . . 2 Utility 2 | . . . . 2 Weapon 1 | . . . . 1 Parts Attached 13 | 5 . 1 1 6 Power 3 | 1 . . 1 1 Engine 1 | 1 . . . . Core 2 | . . . 1 1 Reactor . | . . . . . Propulsion 2 | 2 . . . . Treads 2 | 2 . . . . Leg . | . . . . . Wheel . | . . . . . Hover . | . . . . . Flight . | . . . . . Utility 1 | . . 1 . . Device . | . . . . . Storage 1 | . . 1 . . Processor . | . . . . . Hackware . | . . . . . Protection . | . . . . . Artifact . | . . . . . Weapon 7 | 2 . . . 5 Energy Gun 3 | 1 . . . 2 Energy Cannon . | . . . . . Ballistic Gun 2 | 1 . . . 1 Ballistic Cannon 1 | . . . . 1 Launcher 1 | . . . . 1 Special Weapon . | . . . . . Impact Weapon . | . . . . . Slashing Weapon . | . . . . . Piercing Weapon . | . . . . . Special Melee Weapon . | . . . . . Unidentified Prototypes . | . . . . . Parts Lost 12 | . . . . 12 Power 3 | . . . . 3 Propulsion 1 | . . . . 1 Utility 1 | . . . . 1 Weapon 7 | . . . . 7 Highest Loss Streak 6 | . . . . 6 To Critical Strikes . | . . . . . Average Backups 7 | 3 4 3 7 7 Power 1 | . 1 1 1 1 Propulsion . | 1 2 2 . . Utility 3 | . 1 . 3 3 Weapon 1 | . . . 1 2 Tool/Special . | . . . . . Unused Backups 10 | . . . 5 5 Power 1 | . . . . 1 Propulsion 2 | . . . 2 . Utility 6 | . . . 2 4 Weapon . | . . . . . Tool/Special 1 | . . . 1 . Average Slot Usage (%) 66 | . 71 72 85 34 Engine 4 | . 14 14 6 . Core 6 | . . . 7 5 Treads 21 | . 28 28 28 10 Storage 10 | . . 1 14 5 Energy Gun 10 | . 14 14 14 5 Ballistic Gun 10 | . 14 14 14 5 Peak Build Rating 12 | 5 5 6 12 12 Average Rating 9 | 4 5 5 9 10 On Entrance 5 | . 5 5 6 12 Avg Prop Armor Cover (%) . | . . . . . Naked Turns 23 | . . . . 23 Heaviest Build 17 | 8 8 13 13 17 Greatest Support 40 | 40 40 40 40 40 Greatest Overweight (x) 5 | . . . . 5 Average Overweight (x) . | . . . . . Largest Inventory Capacity 8 | 5 5 8 8 8 Average Capacity 7 | 5 5 5 8 7 Most Carried 8 | 5 4 4 8 8 Average Carried 7 | 3 4 3 7 7 Final Capacity 8 | 5 5 8 8 5 Final Carried 8 | 4 4 3 8 1 Class Distribution -------------------- 100% | Mutant Dominant Class ---------------- Mutant | -10/Materials Mutant | -10/Subcaves Mutant | -9/Scraptown Mutant | -6/Factory Resources | -11 -10 -10 -9 -6 ----------- Run | Yrd Mat Sub Scr Fac Matter Collected 411 | 200 . 15 139 57 Remotely . | . . . . . Salvage Created . | . . . . . Parts . | . . . . . Haulers Intercepted . | . . . . . Recyclers Shooed . | . . . . . Parts Field Recycled . | . . . . . Retrieved Matter . | . . . . . Parts Self-Destructed 3 | . . 3 . . Prevented . | . . . . . Parts Restored . | . . . . . Kills | -11 -10 -10 -9 -6 ------- Run | Yrd Mat Sub Scr Fac Combat Hostiles Destroyed . | . . . . . Classes Destroyed . | . . . . . Best Kill Streak . | . . . . . Combat Bots Only . | . . . . . Max Kills in Single Turn . | . . . . . Gunslinging . | . . . . . Exploded . | . . . . . Melee . | . . . . . Uniques/NPCs Destroyed . | . . . . . Combat | -11 -10 -10 -9 -6 -------- Run | Yrd Mat Sub Scr Fac Hostile Shots Fired 211 | . . . . 211 Missed 67 | . . . . 67 Hits 144 | . . . . 144 Projectile 144 | . . . . 144 Critical Strikes 2 | . . . . 2 Damage Taken 1999 | . . . . 1999 Core 850 | . . . . 850 Absorbed by Shields . | . . . . . Core Remaining (%) 100 | 100 . . 100 . Volleys Fired 16 | . . . . 16 Largest 2 | . . . . 2 Hottest 70 | . . . . 70 Shots Fired 18 | . . . . 18 Gun 14 | . . . . 14 Cannon 4 | . . . . 4 Launcher . | . . . . . Special . | . . . . . Kinetic 10 | . . . . 10 Thermal . | . . . . . Explosive . | . . . . . Electromagnetic 8 | . . . . 8 Robot Hit Streak 3 | . . . . 3 Robot Miss Streak 3 | . . . . 3 Penetration Max . | . . . . . Secondary Targets . | . . . . . Shots Hit Robots 8 | . . . . 8 Core Hits 2 | . . . . 2 Critical Kills . | . . . . . Critical Parts Destroyed . | . . . . . Critical Strikes . | . . . . . Melee Attacks . | . . . . . Impact . | . . . . . Slashing . | . . . . . Piercing . | . . . . . Sneak Attacks . | . . . . . Combat Hostiles . | . . . . . Follow-up Attacks . | . . . . . Damage Inflicted 178 | . . . . 178 Guns 109 | . . . . 109 Cannons 42 | . . . . 42 Explosions . | . . . . . Melee . | . . . . . Ramming 27 | . . . . 27 Kinetic 82 | . . . . 82 Thermal . | . . . . . Explosive . | . . . . . Electromagnetic 69 | . . . . 69 Impact . | . . . . . Slashing . | . . . . . Piercing . | . . . . . Highest Corruption 12 | . . . . 12 Average Corruption 4 | . . . . 4 Corruption Purged . | . . . . . Corruption Blocked . | . . . . . Effects 10 | . . . . 10 Message Errors 2 | . . . . 2 Matter Fused 3 | . . . . 3 Heat Flow Errors 1 | . . . . 1 Energy Discharges 1 | . . . . 1 Parts Rejected 1 | . . . . 1 Data Loss (minor) 1 | . . . . 1 Misdirections 1 | . . . . 1 Overload Shots . | . . . . . Overflow Damage . | . . . . . Projectiles . | . . . . . Explosions . | . . . . . Melee . | . . . . . Knockbacks 1 | . . . . 1 Impact 1 | . . . . 1 Kinetic . | . . . . . Secondary . | . . . . . Self-Inflicted Damage 10 | . . . . 10 Shots . | . . . . . Rammed 16 | . . . . 16 Targets Rammed 16 | . . . . 16 Kicked . | . . . . . Crushed . | . . . . . Highest Temperature 212 | . . . . 212 Average Temperature 193 | . . . . 193 Received Heat Transfer 36 | . . . . 36 Siege Activations . | . . . . . Martial Activations . | . . . . . Shielding Activations . | . . . . . Robots Disrupted . | . . . . . Combat Hostiles . | . . . . . Robots Corrupted . | . . . . . Combat Hostiles . | . . . . . Parts Fried . | . . . . . Impact Corruptions . | . . . . . Robots Melted . | . . . . . Combat Hostiles . | . . . . . Parts Melted . | . . . . . Heat Transferred . | . . . . . Parts Sabotaged . | . . . . . Parts Stolen . | . . . . . Parts Stripped . | . . . . . Power Chain Reactions . | . . . . . Alert | -11 -10 -10 -9 -6 ------- Run | Yrd Mat Sub Scr Fac Maximum Alert Level . | . . . . . Low Security (%) 100 | 100 100 . . 100 Level 1 . | . . . . . Level 2 . | . . . . . Level 3 . | . . . . . Level 4 . | . . . . . Level 5 . | . . . . . High Security . | . . . . . Max Security . | . . . . . Peak Influence 15 | . . . . 15 Initial . | . . . . . Average . | . . . . . Influence Increases 29 | . . . . 29 Successful Hack 12 | . . . . 12 Destroy Structure 2 | . . . . 2 Lose Combat Pursuer 15 | . . . . 15 Influence Decreases 29 | . . . . 29 Time Decay 18 | . . . . 18 Lost Part 11 | . . . . 11 Squads Dispatched 2 | . . . . 2 Investigation . | . . . . . Extermination 1 | . . . . 1 Reinforcement 1 | . . . . 1 Assault . | . . . . . Garrison . | . . . . . Intercept . | . . . . . Searches Triggered . | . . . . . Construction Impeded . | . . . . . Haulers Reinforced . | . . . . . Active Scanning Responses . | . . . . . Cargo Convoy Interrupts . | . . . . . Stealth | -11 -10 -10 -9 -6 --------- Run | Yrd Mat Sub Scr Fac Distress Signals . | . . . . . Communications Jammed . | . . . . . Distress Signals . | . . . . . Times Spotted 8 | . . . . 8 Peak Tracking Total 4 | . . . . 4 Tactical Retreats 1 | . . . . 1 Traps | -11 -10 -10 -9 -6 ------- Run | Yrd Mat Sub Scr Fac Traps Triggered 1 | . . . . 1 Indirectly . | . . . . . Trap Hack Attempts . | . . . . . Triggered . | . . . . . Disarmed . | . . . . . Reprogrammed . | . . . . . Reused . | . . . . . Traps Extracted . | . . . . . Installed . | . . . . . Triggered . | . . . . . Machines | -11 -10 -10 -9 -6 ---------- Run | Yrd Mat Sub Scr Fac Machines Disabled . | . . . . . Max in Single Turn . | . . . . . Machines Repaired . | . . . . . Machines Dismantled . | . . . . . Machines Sabotaged . | . . . . . Overloaded Fab Kills . | . . . . . Hacking | -11 -10 -10 -9 -6 --------- Run | Yrd Mat Sub Scr Fac Machines Accessed 3 | . . . 1 2 Terminals 1 | . . . . 1 Fabricators . | . . . . . Repair Stations . | . . . . . Recycling Units . | . . . . . Scanalyzers 1 | . . . . 1 Garrison Access . | . . . . . Total Hacks 12 | . . . 10 2 Successful 11 | . . . 10 1 Failed 1 | . . . . 1 Catastrophic . | . . . . . Database Lockouts . | . . . . . Manual . | . . . . . Terminals 1 | . . . . 1 Fabricators . | . . . . . Repair Stations . | . . . . . Recycling Units . | . . . . . Scanalyzers 1 | . . . . 1 Garrison Access . | . . . . . Terminal Hacks 11 | . . . 10 1 Record 11 | . . . 10 1 Fabricator Hacks . | . . . . . Repair Station Hacks . | . . . . . Recycling Unit Hacks . | . . . . . Scanalyzer . | . . . . . Garrison Access Hacks . | . . . . . Unauthorized Hacks . | . . . . . Terminals . | . . . . . Fabricators . | . . . . . Repair Stations . | . . . . . Recycling Units . | . . . . . Scanalyzers . | . . . . . Garrison Access . | . . . . . Data Cores Recovered . | . . . . . Used . | . . . . . Hacking Detections 1 | . . . . 1 Full Trace Events . | . . . . . Feedback Events . | . . . . . Feedback Blocked . | . . . . . Robot Schematics Acquired . | . . . . . Robots Built . | . . . . . Authchips . | . . . . . Time . | . . . . . Total Robot Build Rating . | . . . . . Part Schematics Acquired . | . . . . . Parts Built . | . . . . . Authchips . | . . . . . Time . | . . . . . Total Part Build Rating . | . . . . . Part Studies Acquired . | . . . . . Parts Repaired . | . . . . . Time . | . . . . . Parts Recycled . | . . . . . Recycled Matter . | . . . . . Retrieved Matter . | . . . . . Retrieved Components . | . . . . . Parts Scanalyzed . | . . . . . Part Schematics Acquired . | . . . . . Parts Damaged . | . . . . . Bothacking | -11 -10 -10 -9 -6 ------------ Run | Yrd Mat Sub Scr Fac Used RIF Installer . | . . . . . Robots Hacked . | . . . . . Non-combat . | . . . . . Combat . | . . . . . Robot Hacks Applied . | . . . . . Relay Couplers Released . | . . . . . Fabnet Peak Effective % . | . . . . . Robots Rewired . | . . . . . Allies Hacked . | . . . . . Hacks Repelled . | . . . . . Allies | -11 -10 -10 -9 -6 -------- Run | Yrd Mat Sub Scr Fac Total Allies . | . . . . . Largest Group . | . . . . . Highest-Rated Group . | . . . . . Highest-Rated Ally . | . . . . . Total Orders . | . . . . . Ally Attacks . | . . . . . Total Damage . | . . . . . Kills . | . . . . . Allies Corrupted . | . . . . . Allies Melted . | . . . . . Intel | -11 -10 -10 -9 -6 ------- Run | Yrd Mat Sub Scr Fac Active Infowar (turns) . | . . . . . Robot Analysis Total . | . . . . . Derelict Logs Recovered . | . . . . . Drone Launches . | . . . . . Drone Recoveries . | . . . . . Exploration | -11 -10 -10 -9 -6 ------------- Run | Yrd Mat Sub Scr Fac Turns Passed 3049 | 96 33 97 1793 1030 Spaces Moved 1874 | 63 17 52 1114 628 Core 112 | 16 . . . 96 Treads 1762 | 47 17 52 1114 532 Legs . | . . . . . Wheels . | . . . . . Hover . | . . . . . Flight . | . . . . . Fastest Speed 50 | 50 160 160 160 50 Average Speed 156 | 132 160 160 160 152 Slowest Speed 300 | 160 160 160 160 300 Overloaded Moves . | . . . . . Propulsion Burnouts . | . . . . . Robots Hopped . | . . . . . Potential Cave-ins . | . . . . . Cave-ins Triggered . | . . . . . Exploration Rate (%) 16 | 4 6 5 55 11 Regions Visited 4 Branch Regions 2 Pre-discovered Areas . | . . . . . Known Exits Taken . | . . . . . Unknown Exits Taken 4 | 1 1 1 1 . Scrap Searched 2 | . . . 2 . Spaces Dug . | . . . . . Terrain Destroyed 2 | . . . . 2 Melee . | . . . . . Projectile 2 | . . . . 2 AOE . | . . . . . Terrain Rammed . | . . . . . Walls Destroyed . | . . . . . Machines Disabled . | . . . . . Actions | -11 -10 -10 -9 -6 --------- Run | Yrd Mat Sub Scr Fac Total 1967 | 76 23 66 1129 673 Wait 21 | . 7 14 . . Move 1870 | 62 16 51 1113 628 Hop . | . . . . . Pick Up 23 | 9 . . 10 4 Fast Attach . | . . . . . Attach 13 | 5 . 1 . 7 Detach . | . . . . . Swap 1 | . . . 1 . Drop 7 | . . . 5 2 Fire 16 | . . . . 16 Melee . | . . . . . Ram 12 | . . . . 12 Kick . | . . . . . Crush 4 | . . . . 4 Escape Stasis . | . . . . . Rewire . | . . . . . Trap . | . . . . . Miscellaneous . | . . . . . Route ------- -11/Scrapyard -10/Materials -10/Subcaves -9/Scraptown -6/Factory History --------- Turn | Location | Event 7 | -11/Scrapyard | Discovered new exit (range 15) 97 | -11/Scrapyard | Entered Materials 98 | -10/Materials | Met a group of wandering Federalists 122 | -10/Materials | Discovered new exit (range 8) 130 | -10/Materials | Entered Subcaves 130 | -10/Subcaves | Accompanied by 2 allies 131 | -10/Subcaves | Continued accompanying wandering Federalists (5) 131 | -10/Subcaves | Approached by a straggling Scientist 202 | -10/Subcaves | Shifting Twisted Machinery released Sub. Monowheel 226 | -10/Subcaves | Scientist uncovered a shortcut to Scraptown 227 | -10/Subcaves | Entered Scraptown 310 | -9/Scraptown | Build established: Mutant 605 | -9/Scraptown | Visited UFD Registry 629 | -9/Scraptown | Visited IN-MT5's Study 693 | -9/Scraptown | Visited Fellowship of the Rings 776 | -9/Scraptown | Visited Cyclists 888 | -9/Scraptown | Discovered new exit (range 5) 1073 | -9/Scraptown | Visited Junk Repository 1555 | -9/Scraptown | Visited The Evicted 1604 | -9/Scraptown | Visited Red Mages 1640 | -9/Scraptown | Visited Spacefarers 2020 | -9/Scraptown | Entered Factory 2020 | -6/Factory | Evolved 8 slots: Power x3, Propulsion x2, Utility x2, Weapon x1 2693 | -6/Factory | Spotted B-75 Beast 2966 | -6/Factory | Lost 5 parts (1p1n3w) 2972 | -6/Factory | System corruption reached 10% 3008 | -6/Factory | Core integrity fell below 50% 3041 | -6/Factory | Core integrity fell below 20% 3050 | -6/Factory | Destroyed by H-66 Slayer with Heavy Assault Rifle Last Messages --------------- K-01 Serf collects debris. Slug penetrates Wall. Penetrated by Slug. Slug penetrates Wall. K-01 Serf collects debris. Wall collapses. Acquired Shock Rifle. Penetrated by Slug. Hpw. Shock Rifle destroyed. Slammed into H-66 Slayer. Penetrated by Slug. Assembly Bed disabled. K-01 Serf collects debris. Penetrated by Slug. Shock Rifle destroyed. Slammed into H-66 Slayer. System corrupted: Heat flow error (+249). K-01 Serf collects debris. Penetrated by Slug. Terminal disabled. Map ----- +----------------------------------------------------+ | | | | | | | ?????????????????????????????????????????? | | ??###############????????????????????????? | | ??# #????????????????????????? | | ??# #????????????????????????? | | ### """ #????????????????????????? | | + ""T"" """ #????????????????????????? | | ### """"" """ ##########??##???????????? | | ??# # ? #???????????? | | ################# """ """? #???????????? | | = #?????# "Y" """" #???????????? | | #?????# """" #???????????? | | #?????# """" #???????????? | | #?????# """" #???????????? | | """"" #?????# """ #???????????? | | """"" #?????# k #???????????? | | """ #?????# = = #???????????? | | #?????# !! * #???????????? | | """"" #?????# |h[ #???????????? | | """"" #?????# m #???????????? | | """ #?????######;h;;;###???????????? | | #???????# % #????????????? | | #+################# #????????????? | | @ #????????????? | | #????????????? | | """ """" """ """ #????????????? | | """" """" """ """ #????????????? | | """" """" """ """ #????????????? | | """" """" "" #????????????? | | """" """" "" #????????????? | | """" """" ##????????????? | | """" """" #?????????????? | | #?????????????? | | #?????????????? | | #?????????????? | | " " #?????????????? | | ## """ #?????????????? | | ?# % ? #?????????????? | | ?# ?? ??????????????? | | ###"#/################???????????????????? | | ! #????????????????????????????? | | #????????????????????????????? | | #????????????????????????????? | | """" #????????????????????????????? | | """" #????????????????????????????? | | """ #????????????????????????????? | | #????????????????????????????? | | """ #????????????????????????????? | +----------------------------------------------------+ Best States ------------- Heat Dissipation 37 Energy Generation 25 Energy Capacity 250 Matter Stores 300 Matter Capacity 300 Sight Range 16 Terrain Scan Density 10 Evasion (%) 50 Recoil Reduction 2 Item Schematics ----------------- None Robot Schematics ------------------ None Fabricated ------------ Nothing Repaired ---------- Nothing Studied --------- None Alien Tech Used ----------------- None Achievements -------------- Nice Directions, Buddy Challenges ------------ None Game ------ Seed NullTransportStorage Manual? 0 Play Time 00:29:57 Cumulative 13.2 hours Start 2026.07.06 @ 21:09:56 End 2026.07.06 @ 21:45:22 Sessions 1 Manual Loads 0 Difficulty Rogue Special Mode None Game No. 25 Rogue 25 Adventurer 0 Explorer 0 Win Type - Total 0 Types 0/0/0/0/0/0/0/0/0/0 Lore% 14 Gallery% 15 Achievement% 11 Wizard Run 0 Options --------- Layout 1 ASCII 0 Keyboard 0 Movement Arrows Keybinds 0 Fullscreen 2 Font 24/Smallcaps Map View 50x40 Zoom Use 0% Tactical HUD 0 Map Filters NONE Filters NONE Steam 1 RUN: e7c57f99-a9a8-41d8-84df-35fda652d9a6